Workbook

Sheet Sheet1
A1: 附件: 雅安市雨城区2024年上半年公开考试招聘学校教师总成绩、排名及进入体检人员名单
A2: 序号 | B2: 姓名 | C2: 性别 | D2: 准考证号 | E2: 岗位编码 | F2: 职业能力倾向测验 | G2: 职业能力倾向测验折合 | H2: 教育公共基础笔试 | I2: 教育公共基础笔试折合 | J2: 加分 | K2: 笔试分数 | L2: 笔试折合分数 | M2: 面试分数 | N2: 面试折合分数 | O2: 总成绩 | P2: 排名 | Q2: 备注
A3: 1 | B3: 叶晓琳 | C3: 女 | D3: 2024026010111 | E3: 24020001 | F3: 79 | G3: 39.5 | H3: 53.5 | I3: 26.75 | K3: 66.25 | L3: =K3*0.5 -> 33.13 | M3: 86.00 | N3: =M3*0.5 -> 43.00 | O3: =L3+N3 -> 76.13 | P3: 1 | Q3: 进入体检
A4: 2 | B4: 谢成尧 | C4: 女 | D4: 2024026010103 | E4: 24020001 | F4: 66 | G4: 33 | H4: 59.5 | I4: 29.75 | J4: 4 | K4: 66.75 | L4: 33.38 | M4: 81.26 | N4: 40.63 | O4: 74.01 | P4: 2 | Q4: 进入体检
A5: 3 | B5: 殷建军 | C5: 男 | D5: 2024026010101 | E5: 24020001 | F5: 73 | G5: 36.5 | H5: 57 | I5: 28.5 | K5: 65 | L5: 32.50 | M5: 81.32 | N5: 40.66 | O5: 73.16 | P5: 3
A6: 4 | B6: 田祎涵 | C6: 女 | D6: 2024026010105 | E6: 24020001 | F6: 73 | G6: 36.5 | H6: 58.5 | I6: 29.25 | K6: 65.75 | L6: 32.88 | M6: 80.20 | N6: 40.10 | O6: 72.98 | P6: 4
A7: 5 | B7: 税佳敏 | C7: 女 | D7: 2024026010102 | E7: 24020001 | F7: 71 | G7: 35.5 | H7: 55 | I7: 27.5 | K7: 63 | L7: 31.50 | M7: 82.66 | N7: 41.33 | O7: 72.83 | P7: 5
A8: 6 | B8: 李雅玲 | C8: 女 | D8: 2024026010104 | E8: 24020001 | F8: 71 | G8: 35.5 | H8: 58.5 | I8: 29.25 | K8: 64.75 | L8: 32.38 | M8: 80.72 | N8: 40.36 | O8: 72.74 | P8: 6
A9: 7 | B9: 李亚琳 | C9: 女 | D9: 2024026010126 | E9: 24020002 | F9: 72 | G9: 36 | H9: 71 | I9: 35.5 | K9: 71.5 | L9: =K9*0.5 -> 35.75 | M9: 82.28 | N9: =M9*0.5 -> 41.14 | O9: =L9+N9 -> 76.89 | P9: 1 | Q9: 进入体检
A10: 8 | B10: 王毅 | C10: 男 | D10: 2024026010123 | E10: 24020002 | F10: 72 | G10: 36 | H10: 69 | I10: 34.5 | K10: 70.5 | L10: 35.25 | M10: 81.38 | N10: 40.69 | O10: 75.94 | P10: 2 | Q10: 进入体检
A11: 9 | B11: 徐小钧 | C11: 女 | D11: 2024026010122 | E11: 24020002 | F11: 68 | G11: 34 | H11: 59 | I11: 29.5 | K11: 63.5 | L11: 31.75 | M11: 87.46 | N11: 43.73 | O11: 75.48 | P11: 3
A12: 10 | B12: 谢瑶 | C12: 女 | D12: 2024026010116 | E12: 24020002 | F12: 70 | G12: 35 | H12: 57 | I12: 28.5 | K12: 63.5 | L12: 31.75 | M12: 82.50 | N12: 41.25 | O12: 73.00 | P12: 4
A13: 11 | B13: 王光美 | C13: 女 | D13: 2024026010128 | E13: 24020002 | F13: 69 | G13: 34.5 | H13: 53 | I13: 26.5 | K13: 61 | L13: 30.50 | M13: 74.66 | N13: 37.33 | O13: 67.83 | P13: 5
A14: 12 | B14: 杨欣宇 | C14: 女 | D14: 2024026010207 | E14: 24020003 | F14: 74 | G14: 37 | H14: 67 | I14: 33.5 | K14: 70.5 | L14: 35.25 | M14: 86.92 | N14: 43.46 | O14: 78.71 | P14: 1 | Q14: 进入体检
A15: 13 | B15: 杨静 | C15: 女 | D15: 2024026010211 | E15: 24020003 | F15: 76 | G15: 38 | H15: 64.5 | I15: 32.25 | K15: 70.25 | L15: 35.13 | M15: 86.94 | N15: 43.47 | O15: 78.60 | P15: 2 | Q15: 进入体检
A16: 14 | B16: 李永春 | C16: 女 | D16: 2024026010214 | E16: 24020003 | F16: 71 | G16: 35.5 | H16: 67 | I16: 33.5 | K16: 69 | L16: 34.50 | M16: 86.56 | N16: 43.28 | O16: 77.78 | P16: 3
A17: 15 | B17: 冉和 | C17: 男 | D17: 2024026010201 | E17: 24020003 | F17: 62 | G17: 31 | H17: 59.5 | I17: 29.75 | K17: 60.75 | L17: 30.38 | M17: 85.14 | N17: 42.57 | O17: 72.95 | P17: 4
A18: 16 | B18: 王嘉叶 | C18: 女 | D18: 2024026010212 | E18: 24020003 | F18: 75 | G18: 37.5 | H18: 50 | I18: 25 | K18: 62.5 | L18: 31.25 | M18: 82.64 | N18: 41.32 | O18: 72.57 | P18: 5
A19: 17 | B19: 黄婷婷 | C19: 女 | D19: 2024026010205 | E19: 24020003 | F19: 71 | G19: 35.5 | H19: 51 | I19: 25.5 | K19: 61 | L19: 30.50 | M19: 82.08 | N19: 41.04 | O19: 71.54 | P19: 6
A20: 18 | B20: 张斌 | C20: 男 | D20: 2024026010218 | E20: 24020004 | F20: 80 | G20: 40 | H20: 72.5 | I20: 36.25 | K20: 76.25 | L20: 38.13 | M20: 84.46 | N20: 42.23 | O20: 80.36 | P20: 1 | Q20: 进入体检
A21: 19 | B21: 张梦秋 | C21: 女 | D21: 2024026010224 | E21: 24020004 | F21: 75 | G21: 37.5 | H21: 72 | I21: 36 | K21: 73.5 | L21: 36.75 | M21: 83.42 | N21: 41.71 | O21: 78.46 | P21: 2 | Q21: 进入体检
A22: 20 | B22: 龙馨雨 | C22: 女 | D22: 2024026010216 | E22: 24020004 | F22: 77 | G22: 38.5 | H22: 61.5 | I22: 30.75 | K22: 69.25 | L22: 34.63 | M22: 83.48 | N22: 41.74 | O22: 76.37 | P22: 3
A23: 21 | B23: 许潇帆 | C23: 女 | D23: 2024026010223 | E23: 24020004 | F23: 80 | G23: 40 | H23: 49.5 | I23: 24.75 | K23: 64.75 | L23: 32.38 | M23: 85.06 | N23: 42.53 | O23: 74.91 | P23: 4
A24: 22 | B24: 温健阳 | C24: 女 | D24: 2024026010217 | E24: 24020004 | F24: 69 | G24: 34.5 | H24: 59.5 | I24: 29.75 | K24: 64.25 | L24: 32.13 | M24: 83.54 | N24: 41.77 | O24: 73.90 | P24: 5
A25: 23 | B25: 左婷 | C25: 女 | D25: 2024026010219 | E25: 24020004 | F25: 75 | G25: 37.5 | H25: 55 | I25: 27.5 | K25: 65 | L25: 32.50 | M25: 80.52 | N25: 40.26 | O25: 72.76 | P25: 6
A26: 24 | B26: 王雨露 | C26: 女 | D26: 2024026010230 | E26: 24020005 | F26: 72 | G26: 36 | H26: 50 | I26: 25 | K26: 61 | L26: 30.50 | M26: 84.30 | N26: 42.15 | O26: 72.65 | P26: 1 | Q26: 进入体检
A27: 25 | B27: 寇宇 | C27: 男 | D27: 2024026010308 | E27: 24020006 | F27: 78 | G27: 39 | H27: 59.5 | I27: 29.75 | K27: 68.75 | L27: 34.38 | M27: 82.88 | N27: 41.44 | O27: 75.82 | P27: 1 | Q27: 进入体检
A28: 26 | B28: 熊婧兰 | C28: 女 | D28: 2024026010315 | E28: 24020006 | F28: 71 | G28: 35.5 | H28: 55 | I28: 27.5 | K28: 63 | L28: 31.50 | M28: 81.18 | N28: 40.59 | O28: 72.09 | P28: 2 | Q28: 进入体检
A29: 27 | B29: 叶昌玉 | C29: 男 | D29: 2024026010310 | E29: 24020006 | F29: 66 | G29: 33 | H29: 62 | I29: 31 | K29: 64 | L29: 32.00 | M29: 79.60 | N29: 39.80 | O29: 71.80 | P29: 3
A30: 28 | B30: 徐锋 | C30: 男 | D30: 2024026010313 | E30: 24020006 | F30: 66 | G30: 33 | H30: 51 | I30: 25.5 | K30: 58.5 | L30: 29.25 | M30: 83.10 | N30: 41.55 | O30: 70.80 | P30: 4
A31: 29 | B31: 甘永超 | C31: 男 | D31: 2024026010314 | E31: 24020006 | F31: 62 | G31: 31 | H31: 51.5 | I31: 25.75 | K31: 56.75 | L31: 28.38 | M31: 78.34 | N31: 39.17 | O31: 67.55 | P31: 5
A32: 30 | B32: 姜澜 | C32: 女 | D32: 2024026010320 | E32: 24020007 | F32: 77 | G32: 38.5 | H32: 63.5 | I32: 31.75 | K32: 70.25 | L32: 35.13 | M32: 81.88 | N32: 40.94 | O32: 76.07 | P32: 1 | Q32: 进入体检
A33: 31 | B33: 郑爱丽 | C33: 女 | D33: 2024026010318 | E33: 24020007 | F33: 70 | G33: 35 | H33: 59 | I33: 29.5 | K33: 64.5 | L33: 32.25 | M33: 80.70 | N33: 40.35 | O33: 72.60 | P33: 2
A34: 32 | B34: 王晨霖 | C34: 女 | D34: 2024026010325 | E34: 24020008 | F34: 78 | G34: 39 | H34: 55 | I34: 27.5 | K34: 66.5 | L34: 33.25 | M34: 83.32 | N34: 41.66 | O34: 74.91 | P34: 1 | Q34: 进入体检
A35: 33 | B35: 刘林 | C35: 男 | D35: 2024026010324 | E35: 24020008 | F35: 73 | G35: 36.5 | H35: 52 | I35: 26 | K35: 62.5 | L35: 31.25 | M35: 82.98 | N35: 41.49 | O35: 72.74 | P35: 2 | Q35: 进入体检
A36: 34 | B36: 朱茂林 | C36: 男 | D36: 2024026010323 | E36: 24020008 | F36: 66 | G36: 33 | H36: 52.5 | I36: 26.25 | K36: 59.25 | L36: 29.63 | M36: 84.24 | N36: 42.12 | O36: 71.75 | P36: 3
A37: 35 | B37: 黄斌斌 | C37: 男 | D37: 2024026010321 | E37: 24020008 | F37: 60 | G37: 30 | H37: 55 | I37: 27.5 | K37: 57.5 | L37: 28.75 | M37: 80.86 | N37: 40.43 | O37: 69.18 | P37: 4
A38: 36 | B38: 毛月 | C38: 女 | D38: 2024026010329 | E38: 24020008 | F38: 68 | G38: 34 | H38: 53.5 | I38: 26.75 | K38: 60.75 | L38: 30.38 | M38: 77.32 | N38: 38.66 | O38: 69.04 | P38: 5
A39: 37 | B39: 苟富浩 | C39: 男 | D39: 2024026010417 | E39: 24020009 | F39: 77 | G39: 38.5 | H39: 55.5 | I39: 27.75 | K39: 66.25 | L39: 33.13 | M39: 84.58 | N39: 42.29 | O39: 75.42 | P39: 1 | Q39: 进入体检
A40: 38 | B40: 殷雅萍 | C40: 女 | D40: 2024026010405 | E40: 24020009 | F40: 71 | G40: 35.5 | H40: 63.5 | I40: 31.75 | K40: 67.25 | L40: 33.63 | M40: 82.76 | N40: 41.38 | O40: 75.01 | P40: 2
A41: 39 | B41: 田雅琴 | C41: 女 | D41: 2024026010416 | E41: 24020009 | F41: 75 | G41: 37.5 | H41: 55.5 | I41: 27.75 | K41: 65.25 | L41: 32.63 | M41: 82.32 | N41: 41.16 | O41: 73.79 | P41: 3
A42: 40 | B42: 彭永仙 | C42: 女 | D42: 2024026010427 | E42: 24020010 | F42: 75 | G42: 37.5 | H42: 71 | I42: 35.5 | K42: 73 | L42: 36.50 | M42: 79.18 | N42: 39.59 | O42: 76.09 | P42: 1 | Q42: 进入体检
A43: 41 | B43: 胡丹丹 | C43: 女 | D43: 2024026010419 | E43: 24020010 | F43: 74 | G43: 37 | H43: 59.5 | I43: 29.75 | K43: 66.75 | L43: 33.38 | M43: 85.18 | N43: 42.59 | O43: 75.97 | P43: 2 | Q43: 进入体检
A44: 42 | B44: 何婷 | C44: 女 | D44: 2024026010430 | E44: 24020010 | F44: 62 | G44: 31 | H44: 56.5 | I44: 28.25 | K44: 59.25 | L44: 29.63 | M44: 85.12 | N44: 42.56 | O44: 72.19 | P44: 3
A45: 43 | B45: 李蓓宜 | C45: 女 | D45: 2024026010429 | E45: 24020010 | F45: 67 | G45: 33.5 | H45: 45 | I45: 22.5 | K45: 56 | L45: 28.00 | M45: 84.80 | N45: 42.40 | O45: 70.40 | P45: 4
A46: 44 | B46: 符娇 | C46: 女 | D46: 2024026010423 | E46: 24020010 | F46: 69 | G46: 34.5 | H46: 56 | I46: 28 | K46: 62.5 | L46: 31.25 | M46: 77.68 | N46: 38.84 | O46: 70.09 | P46: 5
A47: 45 | B47: 郑影 | C47: 女 | D47: 2024026010506 | E47: 24020011 | F47: 77 | G47: 38.5 | H47: 51 | I47: 25.5 | K47: 64 | L47: 32.00 | M47: 88.20 | N47: 44.10 | O47: 76.10 | P47: 1 | Q47: 进入体检
A48: 46 | B48: 胡巧霞 | C48: 女 | D48: 2024026010507 | E48: 24020011 | F48: 56 | G48: 28 | H48: 64.5 | I48: 32.25 | K48: 60.25 | L48: 30.13 | M48: 85.12 | N48: 42.56 | O48: 72.69 | P48: 2
A49: 47 | B49: 杨瑞可 | C49: 女 | D49: 2024026010609 | E49: 24020013 | F49: 77 | G49: 38.5 | H49: 62.5 | I49: 31.25 | K49: 69.75 | L49: 34.88 | M49: 86.20 | N49: 43.10 | O49: 77.98 | P49: 1 | Q49: 进入体检
A50: 48 | B50: 廖雅茹 | C50: 女 | D50: 2024026010610 | E50: 24020013 | F50: 70 | G50: 35 | H50: 66 | I50: 33 | K50: 68 | L50: 34.00 | M50: 82.52 | N50: 41.26 | O50: 75.26 | P50: 2
A51: 49 | B51: 郑晓颖 | C51: 女 | D51: 2024026010618 | E51: 24020014 | F51: 83 | G51: 41.5 | H51: 65 | I51: 32.5 | K51: 74 | L51: 37.00 | M51: 85.12 | N51: 42.56 | O51: 79.56 | P51: 1 | Q51: 进入体检
A52: 50 | B52: 徐子兴 | C52: 女 | D52: 2024026010623 | E52: 24020014 | F52: 62 | G52: 31 | H52: 71 | I52: 35.5 | K52: 66.5 | L52: 33.25 | M52: 86.68 | N52: 43.34 | O52: 76.59 | P52: 2 | Q52: 进入体检
A53: 51 | B53: 汪倩 | C53: 女 | D53: 2024026010614 | E53: 24020014 | F53: 70 | G53: 35 | H53: 66 | I53: 33 | K53: 68 | L53: 34.00 | M53: 85.14 | N53: 42.57 | O53: 76.57 | P53: 3
A54: 52 | B54: 熊芮 | C54: 女 | D54: 2024026010622 | E54: 24020014 | F54: 80 | G54: 40 | H54: 58.5 | I54: 29.25 | K54: 69.25 | L54: 34.63 | M54: 81.64 | N54: 40.82 | O54: 75.45 | P54: 4
A55: 53 | B55: 杨彩英 | C55: 女 | D55: 2024026010615 | E55: 24020014 | F55: 73 | G55: 36.5 | H55: 67.5 | I55: 33.75 | K55: 70.25 | L55: 35.13 | M55: 77.16 | N55: 38.58 | O55: 73.71 | P55: 5
A56: 54 | B56: 刘徐铭 | C56: 男 | D56: 2024026010616 | E56: 24020014 | F56: 71 | G56: 35.5 | H56: 69 | I56: 34.5 | K56: 70 | L56: 35.00 | M56: 77.34 | N56: 38.67 | O56: 73.67 | P56: 6
A57: 55 | B57: 彭芯蕊 | C57: 女 | D57: 2024026010701 | E57: 24020015 | F57: 70 | G57: 35 | H57: 77.5 | I57: 38.75 | K57: 73.75 | L57: 36.88 | M57: 86.70 | N57: 43.35 | O57: 80.23 | P57: 1 | Q57: 进入体检
A58: 56 | B58: 肖渝 | C58: 男 | D58: 2024026010629 | E58: 24020015 | F58: 76 | G58: 38 | H58: 62.5 | I58: 31.25 | K58: 69.25 | L58: 34.63 | M58: 82.38 | N58: 41.19 | O58: 75.82 | P58: 2
A59: 57 | B59: 薛艳玲 | C59: 女 | D59: 2024026010702 | E59: 24020015 | F59: 74 | G59: 37 | H59: 60.5 | I59: 30.25 | K59: 67.25 | L59: 33.63 | M59: 83.50 | N59: 41.75 | O59: 75.38 | P59: 3
A60: 58 | B60: 张少玉 | C60: 女 | D60: 2024026010717 | E60: 24020016 | F60: 75 | G60: 37.5 | H60: 69 | I60: 34.5 | K60: 72 | L60: 36.00 | M60: 84.30 | N60: 42.15 | O60: 78.15 | P60: 1 | Q60: 进入体检
A61: 59 | B61: 傅静 | C61: 女 | D61: 2024026010714 | E61: 24020016 | F61: 70 | G61: 35 | H61: 64 | I61: 32 | K61: 67 | L61: 33.50 | M61: 84.02 | N61: 42.01 | O61: 75.51 | P61: 2 | Q61: 进入体检
A62: 60 | B62: 赖思瑶 | C62: 女 | D62: 2024026010710 | E62: 24020016 | F62: 64 | G62: 32 | H62: 58 | I62: 29 | K62: 61 | L62: 30.50 | M62: 86.34 | N62: 43.17 | O62: 73.67 | P62: 3
A63: 61 | B63: 周泓伶 | C63: 女 | D63: 2024026010713 | E63: 24020016 | F63: 69 | G63: 34.5 | H63: 61.5 | I63: 30.75 | K63: 65.25 | L63: 32.63 | M63: 80.88 | N63: 40.44 | O63: 73.07 | P63: 4
A64: 62 | B64: 胡月 | C64: 女 | D64: 2024026010715 | E64: 24020016 | F64: 70 | G64: 35 | H64: 51.5 | I64: 25.75 | K64: 60.75 | L64: 30.38 | M64: 85.24 | N64: 42.62 | O64: 73.00 | P64: 5
A65: 63 | B65: 姜莉 | C65: 女 | D65: 2024026010709 | E65: 24020016 | F65: 74 | G65: 37 | H65: 55 | I65: 27.5 | K65: 64.5 | L65: 32.25 | M65: 81.40 | N65: 40.70 | O65: 72.95 | P65: 6
A66: 64 | B66: 席彩萍 | C66: 女 | D66: 2024026010720 | E66: 24020017 | F66: 76 | G66: 38 | H66: 71 | I66: 35.5 | K66: 73.5 | L66: 36.75 | M66: 87.06 | N66: 43.53 | O66: 80.28 | P66: 1 | Q66: 进入体检
A67: 65 | B67: 黄建超 | C67: 女 | D67: 2024026010724 | E67: 24020017 | F67: 66 | G67: 33 | H67: 71.5 | I67: 35.75 | K67: 68.75 | L67: =K67*0.5 -> 34.38 | M67: 84.20 | N67: =M67*0.5 -> 42.10 | O67: =L67+N67 -> 76.48 | P67: 2
A68: 66 | B68: 徐文力 | C68: 女 | D68: 2024026010725 | E68: 24020017 | F68: 69 | G68: 34.5 | H68: 67.5 | I68: 33.75 | K68: 68.25 | L68: 34.13 | M68: 79.42 | N68: 39.71 | O68: 73.84 | P68: 3
A69: 67 | B69: 王婷 | C69: 女 | D69: 2024026010806 | E69: 24020017 | F69: 68 | G69: 34 | H69: 68.5 | I69: 34.25 | K69: 68.25 | L69: 34.13 | M69: 77.60 | N69: 38.80 | O69: 72.93 | P69: 4
A70: 68 | B70: 唐祥辉 | C70: 女 | D70: 2024026010808 | E70: 24020018 | F70: 59 | G70: 29.5 | H70: 54 | I70: 27 | K70: 56.5 | L70: 28.25 | M70: 85.86 | N70: 42.93 | O70: 71.18 | P70: 1 | Q70: 进入体检
A71: 69 | B71: 梁辉旭 | C71: 女 | D71: 2024026010814 | E71: 24020019 | F71: 75 | G71: 37.5 | H71: 69.5 | I71: 34.75 | K71: 72.25 | L71: 36.13 | M71: 84.26 | N71: 42.13 | O71: 78.26 | P71: 1 | Q71: 进入体检
A72: 70 | B72: 邓晗宇 | C72: 女 | D72: 2024026010811 | E72: 24020019 | F72: 79 | G72: 39.5 | H72: 55 | I72: 27.5 | K72: 67 | L72: 33.50 | M72: 82.14 | N72: 41.07 | O72: 74.57 | P72: 2
A73: 71 | B73: 李佳南 | C73: 女 | D73: 2024026010813 | E73: 24020019 | F73: 67 | G73: 33.5 | H73: 56 | I73: 28 | K73: 61.5 | L73: 30.75 | M73: 78.24 | N73: 39.12 | O73: 69.87 | P73: 3
A74: 72 | B74: 姚云莹 | C74: 女 | D74: 2024026010826 | E74: 24020020 | F74: 77 | G74: 38.5 | H74: 76 | I74: 38 | K74: 76.5 | L74: 38.25 | M74: 86.54 | N74: 43.27 | O74: 81.52 | P74: 1 | Q74: 进入体检
A75: 73 | B75: 张琼玉 | C75: 女 | D75: 2024026010911 | E75: 24020020 | F75: 74 | G75: 37 | H75: 76 | I75: 38 | K75: 75 | L75: 37.50 | M75: 84.44 | N75: 42.22 | O75: 79.72 | P75: 2
A76: 74 | B76: 赵霞 | C76: 女 | D76: 2024026010906 | E76: 24020020 | F76: 82 | G76: 41 | H76: 67.5 | I76: 33.75 | K76: 74.75 | L76: 37.38 | M76: 80.46 | N76: 40.23 | O76: 77.61 | P76: 3
A77: 75 | B77: 苏忠梅 | C77: 女 | D77: 2024026010914 | E77: 24020021 | F77: 76 | G77: 38 | H77: 59.5 | I77: 29.75 | K77: 67.75 | L77: 33.88 | M77: 83.26 | N77: 41.63 | O77: 75.51 | P77: 1 | Q77: 进入体检
A78: 76 | B78: 杨义平 | C78: 女 | D78: 2024026010915 | E78: 24020021 | F78: 67 | G78: 33.5 | H78: 59 | I78: 29.5 | K78: 63 | L78: 31.50 | M78: 81.18 | N78: 40.59 | O78: 72.09 | P78: 2
A79: 77 | B79: 魏柯兰 | C79: 女 | D79: 2024026010916 | E79: 24020021 | F79: 58 | G79: 29 | H79: 48 | I79: 24 | K79: 53 | L79: 26.50 | M79: 83.70 | N79: 41.85 | O79: 68.35 | P79: 3
A80: 78 | B80: 黄秀红 | C80: 女 | D80: 2024026010924 | E80: 24020022 | F80: 84 | G80: 42 | H80: 61.5 | I80: 30.75 | K80: 72.75 | L80: 36.38 | M80: 86.64 | N80: 43.32 | O80: 79.70 | P80: 1 | Q80: 进入体检
A81: 79 | B81: 杨琴 | C81: 女 | D81: 2024026011002 | E81: 24020022 | F81: 83 | G81: 41.5 | H81: 61 | I81: 30.5 | K81: 72 | L81: 36.00 | M81: 84.36 | N81: 42.18 | O81: 78.18 | P81: 2 | Q81: 进入体检
A82: 80 | B82: 周丽萍 | C82: 女 | D82: 2024026010920 | E82: 24020022 | F82: 66 | G82: 33 | H82: 67 | I82: 33.5 | K82: 66.5 | L82: 33.25 | M82: 83.26 | N82: 41.63 | O82: 74.88 | P82: 3
A83: 81 | B83: 陈晓雅 | C83: 女 | D83: 2024026010926 | E83: 24020022 | F83: 75 | G83: 37.5 | H83: 51 | I83: 25.5 | K83: 63 | L83: 31.50 | M83: 82.64 | N83: 41.32 | O83: 72.82 | P83: 4
A84: 82 | B84: 邓静 | C84: 女 | D84: 2024026010921 | E84: 24020022 | F84: 60 | G84: 30 | H84: 65 | I84: 32.5 | K84: 62.5 | L84: 31.25 | M84: 80.34 | N84: 40.17 | O84: 71.42 | P84: 5
A85: 83 | B85: 毛岳杨 | C85: 女 | D85: 2024026010930 | E85: 24020022 | F85: 65 | G85: 32.5 | H85: 62.5 | I85: 31.25 | K85: 63.75 | L85: 31.88 | M85: 缺考
A86: 84 | B86: 王霏 | C86: 女 | D86: 2024026011015 | E86: 24020023 | F86: 81 | G86: 40.5 | H86: 71.5 | I86: 35.75 | K86: 76.25 | L86: 38.13 | M86: 81.86 | N86: =M86*0.5 -> 40.93 | O86: =L86+N86 -> 79.06 | P86: 1 | Q86: 进入体检
A87: 85 | B87: 杨佳莉 | C87: 女 | D87: 2024026011017 | E87: 24020023 | F87: 72 | G87: 36 | H87: 66.5 | I87: 33.25 | K87: 69.25 | L87: 34.63 | M87: 87.36 | N87: 43.68 | O87: 78.31 | P87: 2 | Q87: 进入体检
A88: 86 | B88: 汪洋 | C88: 女 | D88: 2024026011025 | E88: 24020023 | F88: 82 | G88: 41 | H88: 63 | I88: 31.5 | K88: 72.5 | L88: 36.25 | M88: 83.98 | N88: 41.99 | O88: 78.24 | P88: 3 | Q88: 进入体检
A89: 87 | B89: 杨明芳 | C89: 女 | D89: 2024026011024 | E89: 24020023 | F89: 68 | G89: 34 | H89: 70 | I89: 35 | K89: 69 | L89: 34.50 | M89: 86.00 | N89: 43.00 | O89: 77.50 | P89: 4
A90: 88 | B90: 陈明芳 | C90: 女 | D90: 2024026011023 | E90: 24020023 | F90: 72 | G90: 36 | H90: 65 | I90: 32.5 | K90: 68.5 | L90: 34.25 | M90: 83.72 | N90: 41.86 | O90: 76.11 | P90: 5
A91: 89 | B91: 廖佳丽 | C91: 女 | D91: 2024026011013 | E91: 24020023 | F91: 66 | G91: 33 | H91: 67.5 | I91: 33.75 | K91: 66.75 | L91: 33.38 | M91: 82.72 | N91: 41.36 | O91: 74.74 | P91: 6
A92: 90 | B92: 董卢科丁 | C92: 男 | D92: 2024026011020 | E92: 24020023 | F92: 72 | G92: 36 | H92: 52.5 | I92: 26.25 | K92: 62.25 | L92: 31.13 | M92: 82.26 | N92: 41.13 | O92: 72.26 | P92: 7
A93: 91 | B93: 高涵 | C93: 女 | D93: 2024026011026 | E93: 24020023 | F93: 77 | G93: 38.5 | H93: 52.5 | I93: 26.25 | K93: 64.75 | L93: 32.38 | M93: 75.12 | N93: 37.56 | O93: 69.94 | P93: 8
A94: 92 | B94: 高小蓉 | C94: 女 | D94: 2024026011022 | E94: 24020023 | F94: 74 | G94: 37 | H94: 49.5 | I94: 24.75 | K94: 61.75 | L94: 30.88 | M94: 缺考
A95: 93 | B95: 张露丹 | C95: 女 | D95: 2024026011101 | E95: 24020024 | F95: 68 | G95: 34 | H95: 65.5 | I95: 32.75 | K95: 66.75 | L95: 33.38 | M95: 87.90 | N95: =M95*0.5 -> 43.95 | O95: =L95+N95 -> 77.33 | P95: 1 | Q95: 进入体检
A96: 94 | B96: 李俞娇 | C96: 女 | D96: 2024026011102 | E96: 24020024 | F96: 69 | G96: 34.5 | H96: 76 | I96: 38 | K96: 72.5 | L96: 36.25 | M96: 80.04 | N96: =M96*0.5 -> 40.02 | O96: =L96+N96 -> 76.27 | P96: 2
A97: 95 | B97: 胥文葶 | C97: 女 | D97: 2024026011030 | E97: 24020024 | F97: 59 | G97: 29.5 | H97: 61.5 | I97: 30.75 | K97: 60.25 | L97: 30.13 | M97: 80.12 | N97: =M97*0.5 -> 40.06 | O97: =L97+N97 -> 70.19 | P97: 3
A98: 96 | B98: 寇荔蒙 | C98: 女 | D98: 2024026011115 | E98: 24020025 | F98: 86 | G98: 43 | H98: 59.5 | I98: 29.75 | K98: 72.75 | L98: 36.38 | M98: 82.36 | N98: 41.18 | O98: 77.56 | P98: 1 | Q98: 进入体检
A99: 97 | B99: 杨嘉怡 | C99: 女 | D99: 2024026011114 | E99: 24020025 | F99: 71 | G99: 35.5 | H99: 66.5 | I99: 33.25 | K99: 68.75 | L99: 34.38 | M99: 86.24 | N99: 43.12 | O99: 77.50 | P99: 2 | Q99: 进入体检
A100: 98 | B100: 刘西亚 | C100: 女 | D100: 2024026011103 | E100: 24020025 | F100: 69 | G100: 34.5 | H100: 66.5 | I100: 33.25 | K100: 67.75 | L100: 33.88 | M100: 82.12 | N100: 41.06 | O100: 74.94 | P100: 3 | Q100: 进入体检
A101: 99 | B101: 何佳佳 | C101: 女 | D101: 2024026011120 | E101: 24020025 | F101: 65 | G101: 32.5 | H101: 67.5 | I101: 33.75 | K101: 66.25 | L101: 33.13 | M101: 82.30 | N101: 41.15 | O101: 74.28 | P101: 4
A102: 100 | B102: 邓卓徐 | C102: 女 | D102: 2024026011106 | E102: 24020025 | F102: 76 | G102: 38 | H102: 53 | I102: 26.5 | K102: 64.5 | L102: 32.25 | M102: 80.78 | N102: 40.39 | O102: 72.64 | P102: 5
A103: 101 | B103: 阳瑶 | C103: 女 | D103: 2024026011122 | E103: 24020025 | F103: 63 | G103: 31.5 | H103: 60 | I103: 30 | K103: 61.5 | L103: 30.75 | M103: 82.42 | N103: 41.21 | O103: 71.96 | P103: 6
A104: 102 | B104: 杨俏 | C104: 女 | D104: 2024026011119 | E104: 24020025 | F104: 64 | G104: 32 | H104: 57.5 | I104: 28.75 | K104: 60.75 | L104: 30.38 | M104: 79.68 | N104: 39.84 | O104: 70.22 | P104: 7
A105: 103 | B105: 汪敏 | C105: 女 | D105: 2024026011117 | E105: 24020025 | F105: 60 | G105: 30 | H105: 62 | I105: 31 | K105: 61 | L105: 30.50 | M105: 78.54 | N105: 39.27 | O105: 69.77 | P105: 8
A106: 104 | B106: 郑思情 | C106: 女 | D106: 2024026011130 | E106: 24020026 | F106: 67 | G106: 33.5 | H106: 72.5 | I106: 36.25 | K106: 69.75 | L106: 34.88 | M106: 85.56 | N106: 42.78 | O106: 77.66 | P106: 1 | Q106: 进入体检
A107: 105 | B107: 段馨月 | C107: 女 | D107: 2024026011202 | E107: 24020026 | F107: 72 | G107: 36 | H107: 63 | I107: 31.5 | K107: 67.5 | L107: 33.75 | M107: 85.04 | N107: 42.52 | O107: 76.27 | P107: 2 | Q107: 进入体检
A108: 106 | B108: 韩雅蕊 | C108: 女 | D108: 2024026011208 | E108: 24020026 | F108: 74 | G108: 37 | H108: 61.5 | I108: 30.75 | K108: 67.75 | L108: 33.88 | M108: 84.32 | N108: 42.16 | O108: 76.04 | P108: 3
A109: 107 | B109: 陶佳伦 | C109: 女 | D109: 2024026011201 | E109: 24020026 | F109: 66 | G109: 33 | H109: 60.5 | I109: 30.25 | K109: 63.25 | L109: 31.63 | M109: 83.90 | N109: 41.95 | O109: 73.58 | P109: 4
A110: 108 | B110: 杨兴蕾 | C110: 女 | D110: 2024026011129 | E110: 24020026 | F110: 70 | G110: 35 | H110: 59 | I110: 29.5 | K110: 64.5 | L110: 32.25 | M110: 81.86 | N110: 40.93 | O110: 73.18 | P110: 5
A111: 109 | B111: 吴宇翔 | C111: 男 | D111: 2024026011224 | E111: 24020027 | F111: 72 | G111: 36 | H111: 66 | I111: 33 | K111: 69 | L111: 34.50 | M111: 86.33 | N111: 43.17 | O111: 77.67 | P111: 1 | Q111: 进入体检
A112: 110 | B112: 顾浩琦 | C112: 男 | D112: 2024026011225 | E112: 24020027 | F112: 72 | G112: 36 | H112: 63 | I112: 31.5 | K112: 67.5 | L112: 33.75 | M112: 84.96 | N112: 42.48 | O112: 76.23 | P112: 2
A113: 111 | B113: 李林轩 | C113: 男 | D113: 2024026011305 | E113: 24020027 | F113: 74 | G113: 37 | H113: 60.5 | I113: 30.25 | K113: 67.25 | L113: 33.63 | M113: 83.75 | N113: 41.88 | O113: 75.50 | P113: 3
A114: 112 | B114: 张瑞莹 | C114: 女 | D114: 2024026011316 | E114: 24020028 | F114: 69 | G114: 34.5 | H114: 63 | I114: 31.5 | K114: 66 | L114: 33.00 | M114: 85.36 | N114: 42.68 | O114: 75.68 | P114: 1 | Q114: 进入体检
A115: 113 | B115: 李怡乐 | C115: 女 | D115: 2024026011315 | E115: 24020028 | F115: 61 | G115: 30.5 | H115: 68 | I115: 34 | K115: 64.5 | L115: 32.25 | M115: 86.22 | N115: 43.11 | O115: 75.36 | P115: 2 | Q115: 进入体检
A116: 114 | B116: 杨延曲 | C116: 女 | D116: 2024026011318 | E116: 24020028 | F116: 62 | G116: 31 | H116: 65 | I116: 32.5 | K116: 63.5 | L116: 31.75 | M116: 84.80 | N116: 42.40 | O116: 74.15 | P116: 3
A117: 115 | B117: 李祉明 | C117: 男 | D117: 2024026011319 | E117: 24020028 | F117: 76 | G117: 38 | H117: 52 | I117: 26 | K117: 64 | L117: 32.00 | M117: 80.30 | N117: 40.15 | O117: 72.15 | P117: 4
A118: 116 | B118: 陈涓 | C118: 女 | D118: 2024026011312 | E118: 24020028 | F118: 61 | G118: 30.5 | H118: 59.5 | I118: 29.75 | K118: 60.25 | L118: 30.13 | M118: 81.68 | N118: 40.84 | O118: 70.97 | P118: 5
A119: 117 | B119: 洪江露 | C119: 女 | D119: 2024026011313 | E119: 24020028 | F119: 63 | G119: 31.5 | H119: 61.5 | I119: 30.75 | K119: 62.25 | L119: 31.13 | M119: 79.30 | N119: 39.65 | O119: 70.78 | P119: 6
A120: 118 | B120: 甘英东 | C120: 男 | D120: 2024026011322 | E120: 24020029 | F120: 74 | G120: 37 | H120: 58.5 | I120: 29.25 | K120: 66.25 | L120: 33.13 | M120: 84.30 | N120: 42.15 | O120: 75.28 | P120: 1 | Q120: 进入体检
A121: 119 | B121: 秦秋月 | C121: 女 | D121: 2024026011328 | E121: 24020029 | F121: 64 | G121: 32 | H121: 67 | I121: 33.5 | K121: 65.5 | L121: 32.75 | M121: 81.44 | N121: 40.72 | O121: 73.47 | P121: 2
A122: 120 | B122: 陈巧 | C122: 女 | D122: 2024026011321 | E122: 24020029 | F122: 68 | G122: 34 | H122: 62 | I122: 31 | K122: 65 | L122: 32.50 | M122: 80.18 | N122: 40.09 | O122: 72.59 | P122: 3
A123: 121 | B123: 张诗宇 | C123: 女 | D123: 2024026011403 | E123: 24020030 | F123: 76 | G123: 38 | H123: 69.5 | I123: 34.75 | K123: 72.75 | L123: 36.38 | M123: 86.16 | N123: 43.08 | O123: 79.46 | P123: 1 | Q123: 进入体检
A124: 122 | B124: 付姣 | C124: 女 | D124: 2024026011420 | E124: 24020030 | F124: 77 | G124: 38.5 | H124: 61 | I124: 30.5 | K124: 69 | L124: 34.50 | M124: 84.92 | N124: 42.46 | O124: 76.96 | P124: 2
A125: 123 | B125: 倪江鸿 | C125: 女 | D125: 2024026011413 | E125: 24020030 | F125: 80 | G125: 40 | H125: 56.5 | I125: 28.25 | K125: 68.25 | L125: 34.13 | M125: 80.20 | N125: 40.10 | O125: 74.23 | P125: 3
A126: 124 | B126: 杨睿媛 | C126: 女 | D126: 2024026011501 | E126: 24020031 | F126: 77 | G126: 38.5 | H126: 71.5 | I126: 35.75 | K126: 74.25 | L126: 37.13 | M126: 85.04 | N126: 42.52 | O126: 79.65 | P126: 1 | Q126: 进入体检
A127: 125 | B127: 宋丽娟 | C127: 女 | D127: 2024026011504 | E127: 24020031 | F127: 69 | G127: 34.5 | H127: 68 | I127: 34 | K127: 68.5 | L127: 34.25 | M127: 82.73 | N127: 41.37 | O127: 75.62 | P127: 2 | Q127: 进入体检
A128: 126 | B128: 吴丽柯 | C128: 女 | D128: 2024026011515 | E128: 24020031 | F128: 57 | G128: 28.5 | H128: 71.5 | I128: 35.75 | K128: 64.25 | L128: 32.13 | M128: 82.22 | N128: 41.11 | O128: 73.24 | P128: 3
A129: 127 | B129: 董雪 | C129: 女 | D129: 2024026011521 | E129: 24020031 | F129: 66 | G129: 33 | H129: 62.5 | I129: 31.25 | K129: 64.25 | L129: 32.13 | M129: 81.59 | N129: 40.80 | O129: 72.92 | P129: 4
A130: 128 | B130: 周秦瑶 | C130: 女 | D130: 2024026011508 | E130: 24020031 | F130: 64 | G130: 32 | H130: 70.5 | I130: 35.25 | K130: 67.25 | L130: 33.63 | M130: 78.00 | N130: 39.00 | O130: 72.63 | P130: 5
A131: 129 | B131: 蒲小雪 | C131: 女 | D131: 2024026011507 | E131: 24020031 | F131: 58 | G131: 29 | H131: 69.5 | I131: 34.75 | K131: 63.75 | L131: =K131*0.5 -> 31.88 | M131: 80.49 | N131: 40.25 | O131: 72.12 | P131: 6
A132: 130 | B132: 王灵铃 | C132: 女 | D132: 2024026011612 | E132: 24020032 | F132: 82 | G132: 41 | H132: 68 | I132: 34 | K132: 75 | L132: 37.50 | M132: 81.40 | N132: 40.70 | O132: 78.20 | P132: 1 | Q132: 进入体检
A133: 131 | B133: 姜圳 | C133: 男 | D133: 2024026011704 | E133: 24020032 | F133: 79 | G133: 39.5 | H133: 60 | I133: 30 | K133: 69.5 | L133: 34.75 | M133: 85.78 | N133: 42.89 | O133: 77.64 | P133: 2 | Q133: 进入体检
A134: 132 | B134: 宋雨蕤 | C134: 女 | D134: 2024026011707 | E134: 24020032 | F134: 76 | G134: 38 | H134: 58.5 | I134: 29.25 | K134: 67.25 | L134: 33.63 | M134: 76.42 | N134: 38.21 | O134: 71.84 | P134: 3
A135: 133 | B135: 陈艺菲 | C135: 女 | D135: 2024026011716 | E135: 24020032 | F135: 71 | G135: 35.5 | H135: 58 | I135: 29 | K135: 64.5 | L135: 32.25 | M135: 75.80 | N135: 37.90 | O135: 70.15 | P135: 4
A136: 134 | B136: 马俪尹 | C136: 女 | D136: 2024026011717 | E136: 24020032 | F136: 60 | G136: 30 | H136: 65 | I136: 32.5 | K136: 62.5 | L136: 31.25 | M136: 77.01 | N136: 38.51 | O136: 69.76 | P136: 5
A137: 135 | B137: 胡晓逸 | C137: 女 | D137: 2024026011725 | E137: 24020032 | F137: 72 | G137: 36 | H137: 55.5 | I137: 27.75 | K137: 63.75 | L137: 31.88 | M137: 75.57 | N137: 37.79 | O137: 69.66 | P137: 6

Sheet Sheet2

Sheet Sheet3
